bitfinex/quotes_ETHUSD_20250415
["timestamp","ask_amount","ask_price","bid_price","bid_amount"]
[1744745250465,7.08248085,1599.7,1599.3,6.25272777]
[1744745250669,6.25188681,1599.6,1599.1,6.25313214]
[1744745250866,0.8313,1599.7,1599.2,6.2531233]
[1744745251059,6.25179178,1599.6,1599.1,6.25313214]
[1744745251253,0.8313,1599.7,1599.3,6.25251412]
[1744745251949,7.08285767,1599.7,1599.2,6.25291201]
[1744745252157,7.08257334,1599.7,1599.3,6.25259379]
[1744745252878,0.8313,1599.7,1599.3,12.50519665]
[1744745253175,0.8313,1599.7,1599.3,6.25259379]
[1744745253381,0.7515,1600.0,1599.5,6.2516133]
[1744745253582,0.7515,1600.0,1599.3,6.87771909]
[1744745253743,0.7515,1600.0,1599.6,6.2511917]
[1744745253939,0.7515,1600.0,1599.6,12.5026158]
[1744745254140,0.7515,1600.0,1599.7,6.25102398]
[1744745254339,6.24930011,1600.2,1599.7,6.25102398]
[1744745254540,17.5054995,1600.3,1599.8,6.25077234]
[1744745254762,6.24960814,1600.2,1599.7,12.50215233]
[1744745254969,12.49906419,1600.2,1599.7,6.25103269]
[1744745255164,12.49891673,1600.2,1599.7,6.25103269]
[1744745255385,12.49888453,1600.2,1599.7,6.25103265]
[1744745255594,6.25014616,1600.0,1599.6,6.25146843]
[1744745255797,6.25014616,1600.0,1599.5,12.50370256]
[1744745256087,6.25014616,1600.0,1599.5,6.25180538]
[1744745256300,6.24972196,1600.1,1599.6,12.50286224]
[1744745256603,12.49944911,1600.1,1599.6,6.25143754]
[1744745256811,6.25020563,1600.0,1599.5,6.25183561]
[1744745257012,17.50552252,1600.3,1599.4,6.25229159]
[1744745257219,6.2509959,1599.8,1599.3,12.50519004]
[1744745257429,6.25184269,1599.6,1599.1,6.25331666]
[1744745257711,7.05458134,1599.8,1599.0,7.04903776]
[1744745257712,6.25200016,1599.5,1599.0,6.25363554]
[1744745257916,6.25192161,1599.6,1599.1,6.25334272]
[1744745258317,6.25175648,1599.6,1599.1,6.25321703]
[1744745258514,10.193,1599.7,1599.2,0.06252373]
[1744745258717,16.44422569,1599.7,1599.3,6.25259005]
[1744745259071,10.193,1599.7,1599.3,12.50521804]
[1744745259415,10.193,1599.7,1599.4,6.25230588]
[1744745259922,0.8038,1599.8,1599.5,6.2516902]
[1744745260071,0.8038,1599.8,1599.4,12.5045563]
[1744745260284,0.8038,1599.8,1599.5,6.25185098]
[1744745260573,0.7827,1600.1,1599.8,6.25054765]
[1744745260773,0.7827,1600.1,1599.7,6.25106447]
[1744745261001,0.7827,1600.1,1599.7,6.25093703]
[1744745261578,7.03242659,1600.1,1599.6,6.25147166]
[1744745261790,6.25014978,1600.0,1599.6,6.25147166]
[1744745261981,12.50035447,1600.0,1599.5,13.75424515]
[1744745262316,6.25014978,1600.0,1599.6,6.25154443]
[1744745262511,0.7827,1600.1,1599.7,6.25114319]
[1744745262667,0.7827,1600.1,1599.7,6.25104872]
[1744745262872,0.7827,1600.1,1599.6,6.25148061]
[1744745263210,0.7827,1600.1,1599.7,6.25104707]
[1744745263211,7.03239446,1600.1,1599.7,6.25104707]
[1744745263519,13.28230403,1600.1,1599.7,6.25104707]
[1744745263873,0.7827,1600.1,1599.8,6.25057214]
[1744745264450,0.7827,1600.1,1599.8,12.50119807]
[1744745264731,6.24890615,1600.3,1599.8,12.50119807]
[1744745264732,17.21628446,1600.4,1599.9,6.25017484]
[1744745264883,7.02328446,1600.4,1600.0,6.24996721]
[1744745265088,0.7748,1600.4,1599.9,6.25028807]
[1744745265308,12.49797268,1600.3,1599.9,6.25028807]
[1744745265929,7.02340945,1600.4,1600.0,6.24996649]
[1744745266090,0.7748,1600.4,1600.1,6.24959095]
[1744745266286,0.7748,1600.4,1600.1,6.24946863]
[1744745266487,7.02332437,1600.4,1600.0,6.24988867]
[1744745266687,7.02332437,1600.4,1600.0,6.24988613]
[1744745266899,7.02332437,1600.4,1600.0,12.49977941]
[1744745267194,6.24948634,1600.2,1599.8,6.25066645]
[1744745267410,12.49955296,1600.1,1599.7,6.25108358]
[1744745267632,6.24963863,1600.1,1599.7,12.50214323]
[1744745267783,0.7748,1600.4,1599.7,1.25021432]
[1744745267982,7.02326759,1600.4,1599.5,6.25183235]
[1744745268326,6.25282398,1599.3,1598.9,7.00911442]
[1744745268630,6.25282398,1599.3,1598.9,12.50838138]
[1744745268836,6.2531339,1599.2,1598.9,6.25416696]
[1744745268997,6.25282398,1599.3,1598.9,12.50830536]
[1744745269522,12.50578263,1599.3,1598.9,6.2541384]
[1744745270040,6.25377269,1599.1,1598.7,6.25504754]
[1744745270541,6.25377269,1599.1,1598.7,12.50999504]
[1744745271437,6.25377269,1599.1,1598.8,6.25468123]
[1744745271652,6.25277925,1599.3,1598.7,6.25508225]
[1744745271858,12.50665851,1599.2,1598.8,6.25446428]
[1744745272037,7.05496775,1599.4,1598.8,6.25446428]
[1744745272239,6.25353051,1599.1,1598.8,6.25446428]
[1744745272438,12.50592508,1599.3,1598.9,6.31648887]
[1744745272640,0.761,1599.8,1598.9,0.8015]
[1744745272843,0.761,1599.8,1599.0,6.25390065]
[1744745273056,6.25267303,1599.4,1599.0,12.50769232]
[1744745273355,0.34272843,1599.7,1599.1,6.25346103]
[1744745273566,6.25215715,1599.5,1599.2,6.25305598]
[1744745273868,6.25120449,1599.7,1599.1,6.2535176]
[1744745274023,6.25201045,1599.5,1599.2,6.25312382]
[1744745274223,6.25158294,1599.6,1599.2,6.2527513]
[1744745274730,12.50340046,1599.6,1599.2,12.50572937]
[1744745275406,6.25158294,1599.6,1599.3,12.50512494]
[1744745275569,7.01180078,1599.8,1599.4,6.25207301]
[1744745275867,12.50264096,1599.7,1599.3,6.25252097]
[1744745276160,7.01191194,1599.8,1599.4,6.2520232]
[1744745276371,12.50312578,1599.6,1598.9,0.46764197]
[1744745276570,0.776,1598.7,1598.6,1e-08]
[1744745276772,7.02991238,1599.0,1598.6,6.25530426]
[1744745277064,0.776,1599.0,1598.6,1e-08]
[1744745277280,6.25357754,1599.1,1598.6,6.88142898]
[1744745277563,6.25357754,1599.1,1598.7,6.25489272]
[1744745277766,6.25393658,1599.0,1598.7,6.25489272]
[1744745277967,13.28174852,1599.3,1598.8,6.2545716]
[1744745278266,13.28174852,1599.3,1598.9,6.25406523]
[1744745278267,7.02880244,1599.3,1598.9,6.25406523]
[1744745278421,6.25325076,1599.2,1598.8,12.50915034]
[1744745278619,7.02881638,1599.3,1598.9,12.50821357]
[1744745278820,7.02881638,1599.3,1598.9,6.25403636]
[1744745279071,6.25317379,1599.2,1598.9,6.25403636]
[1744745279336,6.25317379,1599.2,1598.8,1.32995503]
[1744745279337,6.25396367,1599.0,1598.8,1.32995503]
[1744745279629,12.50729124,1599.1,1598.7,7.04532806]
[1744745280041,6.25327254,1599.2,1598.8,12.50938156]
[1744745280221,6.25331693,1599.2,1598.7,0.7904]
[1744745280420,6.25331693,1599.2,1598.8,6.25440374]
[1744745280643,6.25443126,1598.9,1598.6,0.62608327]
[1744745281363,6.2547329,1598.8,1598.6,1e-08]
[1744745281780,6.25443126,1598.9,1598.6,1e-08]
[1744745281989,6.25481001,1598.8,1598.6,1e-08]
[1744745282121,6.31933931,1598.7,1598.6,1e-08]
[1744745283370,0.7629,1599.3,1598.6,6.25534186]
[1744745283523,6.25397291,1599.0,1598.6,6.25529227]
[1744745283865,6.25397291,1599.0,1598.6,6.8813215]
[1744745284187,6.25397291,1599.0,1598.7,6.25490754]
[1744745284448,6.25397291,1599.0,1598.7,6.31744891]
[1744745284844,12.5073124,1599.1,1598.7,12.57240449]
[1744745285046,6.25207717,1599.5,1599.1,6.25336667]
[1744745285240,0.82715706,1599.6,1599.2,0.06252788]
[1744745285441,6.25210185,1599.5,1599.2,6.25306412]
[1744745285750,6.25216754,1599.5,1599.2,0.06252265]
[1744745285932,12.50449119,1599.5,1599.2,6.3156259]
[1744745286132,6.25216754,1599.5,1599.2,6.25310325]
[1744745286335,12.50449119,1599.5,1599.2,6.25310325]
[1744745286552,6.2525034,1599.4,1599.1,6.25336157]
[1744745286729,6.25285044,1599.3,1599.0,6.25369151]
[1744745286930,6.25285044,1599.3,1599.0,6.87906066]
[1744745287144,6.25285044,1599.3,1599.0,13.13283442]
[1744745287340,7.01457276,1599.6,1598.8,14.06771393]
[1744745287341,7.01457276,1599.6,1598.8,15.87446473]
[1744745287676,6.25367093,1599.1,1598.8,15.87468368]
[1744745287981,6.25367093,1599.1,1598.8,22.12923311]
[1744745288140,6.25316908,1599.2,1598.8,22.12909886]
[1744745288341,12.50652004,1599.2,1598.8,22.12909886]
[1744745288538,12.50656121,1599.2,1598.9,6.3167608]
[1744745288860,12.50574957,1599.3,1598.9,12.57098797]
[1744745289171,6.25282564,1599.3,1599.0,6.2536911]
[1744745289378,6.25344251,1599.2,1598.8,18.2952112]
[1744745289554,6.25288533,1599.3,1598.9,6.25422016]
[1744745289760,6.2524089,1599.4,1599.1,6.25340846]
[1744745289959,12.50504763,1599.4,1599.1,6.25340846]
[1744745290652,12.50504763,1599.4,1599.0,12.5075173]
[1744745290842,6.25291327,1599.3,1599.0,6.25373755]
[1744745291549,6.25291327,1599.3,1598.9,6.25415113]
[1744745291770,6.25327223,1599.2,1598.9,12.50832599]
[1744745292178,6.25327223,1599.2,1598.9,6.25415113]
[1744745292475,6.25327223,1599.2,1598.8,15.87467645]
[1744745292681,6.25312656,1599.2,1598.9,0.06253333]
[1744745292881,6.31677714,1599.4,1599.0,6.25355803]
[1744745293082,6.25295668,1599.3,1599.0,6.25382503]
[1744745293379,12.50599945,1599.3,1599.0,6.25377051]
[1744745293580,6.25317634,1599.2,1598.9,14.10210268]
[1744745293980,6.25295668,1599.3,1599.0,6.25377013]
[1744745294177,6.25285361,1599.3,1599.0,6.25377013]
[1744745294761,12.50491509,1599.4,1599.0,7.0385184]
[1744745294964,6.2524229,1599.4,1599.1,6.25337983]
[1744745295158,0.7629,1599.6,1599.1,6.25337983]
[1744745295159,12.50422509,1599.5,1599.2,6.25302215]
[1744745295387,6.25167706,1599.6,1599.3,6.25254918]
[1744745295582,12.50338889,1599.6,1599.3,6.25254918]
[1744745295884,0.8176,1599.8,1599.2,6.25312656]
[1744745296185,6.2500293,1600.0,1599.5,6.25190115]
[1744745296186,6.25041268,1599.9,1599.5,6.25190115]
[1744745296406,12.50137769,1599.9,1599.5,6.25168181]
[1744745296588,12.50137769,1599.9,1599.5,12.50341933]
[1744745296750,6.25079102,1599.8,1599.5,12.50341933]
[1744745296953,6.25061125,1599.9,1599.5,6.2518581]
[1744745297151,0.06425706,1599.8,1599.2,6.2528005]
[1744745297355,6.25165361,1599.6,1599.3,6.25262757]
[1744745297664,6.25091245,1599.8,1599.5,6.2518456]
[1744745297855,0.7864,1600.1,1599.5,6.25195373]
[1744745298060,0.7864,1600.1,1599.3,6.94048742]
[1744745298061,6.25012017,1600.0,1599.7,6.25104411]
[1744745298260,12.5002651,1600.0,1599.7,6.25104411]
[1744745298483,12.50027464,1600.0,1599.7,6.25104411]
[1744745298812,6.25012017,1600.0,1599.7,6.25114623]
[1744745298954,6.25012017,1600.0,1599.6,12.50300102]
[1744745299160,6.25012017,1600.0,1599.7,6.25114949]
[1744745299360,6.25105763,1599.8,1599.5,6.2517978]
[1744745299659,12.50203659,1599.8,1599.5,6.2517978]
[1744745300061,6.25050176,1599.9,1599.6,6.25150448]
[1744745300264,6.25085752,1599.8,1599.5,12.50364812]
[1744745300462,6.25050176,1599.9,1599.3,10.35711013]
[1744745300691,6.25089652,1599.8,1599.5,6.25176132]
[1744745300871,6.25148573,1599.7,1599.3,3.62526276]
[1744745301066,6.25145105,1599.7,1599.4,6.25206615]
[1744745301273,6.25089201,1599.8,1599.4,6.25219396]
[1744745301491,0.7864,1600.1,1599.5,6.2517025]
[1744745301492,6.25065608,1599.9,1599.5,6.2517025]
[1744745301696,6.25047983,1599.9,1599.5,6.2517025]
[1744745301997,6.25101145,1599.8,1599.5,12.50379358]
[1744745302194,6.25118871,1599.7,1599.4,6.25222244]
[1744745302399,12.50194434,1599.8,1599.5,6.2518284]
[1744745302588,6.25093289,1599.8,1599.5,6.2518284]
[1744745303083,12.50188448,1599.8,1599.5,6.25193721]
[1744745303289,12.50257534,1599.7,1599.4,6.2522228]
[1744745303596,6.25040844,1599.9,1599.2,6.25305478]
[1744745303897,6.25225942,1599.5,1599.2,6.25291028]
[1744745304095,6.25225942,1599.5,1599.2,12.50590746]
[1744745304404,6.25225942,1599.5,1598.9,1.27218115]
[1744745304405,0.06425706,1599.5,1598.9,1.27218115]
[1744745304698,0.06425706,1599.5,1598.9,7.52637469]
[1744745304897,0.06425706,1599.5,1598.9,7.52642551]
[1744745305074,6.2531774,1599.2,1598.9,7.04674436]
[1744745305396,12.50617033,1599.3,1598.9,13.30087342]
[1744745305602,6.25290856,1599.3,1599.0,6.25377385]
[1744745305907,6.25208656,1599.5,1599.1,6.31601045]
[1744745306111,12.5041976,1599.5,1599.2,6.25300419]
[1744745306420,6.2515907,1599.6,1599.3,6.3151214]
[1744745306559,6.2515907,1599.6,1599.3,6.25259912]
[1744745306988,6.2515907,1599.6,1599.3,6.25269776]
[1744745307191,6.25198163,1599.5,1599.2,12.50601098]
[1744745307392,6.25198163,1599.5,1599.2,6.25300549]
[1744745307601,6.25167828,1599.6,1599.0,9.25389205]
[1744745307800,6.25223153,1599.5,1599.2,6.25302093]
[1744745308169,0.06425706,1599.7,1599.1,12.50682493]
[1744745308366,0.06425706,1599.8,1598.9,2.56735874]
[1744745308588,6.25190335,1599.6,1599.2,6.25290511]
[1744745308901,6.2523607,1599.4,1599.0,12.507527]
[1744745309118,6.25245295,1599.4,1599.0,6.25364848]
[1744745309323,6.25156289,1599.6,1598.9,7.04665551]
[1744745309477,12.50576694,1599.3,1598.9,7.0467626]
[1744745309672,6.25354597,1599.1,1598.8,9.25458399]
[1744745310008,6.25354597,1599.1,1598.8,18.37177688]
[1744745310210,6.25314558,1599.2,1598.9,6.25407345]
[1744745310380,6.25440137,1598.9,1598.7,9.333]
[1744745310699,0.7875,1599.5,1598.7,9.333]
[1744745310700,6.25394887,1599.0,1598.7,9.333]
[1744745310903,6.25437475,1598.9,1598.7,9.333]
[1744745311308,12.5082324,1599.0,1598.7,15.58807617]
[1744745311493,6.25394887,1599.0,1598.7,21.84303672]
[1744745311894,6.25394887,1599.0,1598.7,9.333]
[1744745312392,12.5081607,1599.0,1598.7,15.58803595]
[1744745312599,6.25394887,1599.0,1598.7,21.84301107]
[1744745312797,6.25394887,1599.0,1598.7,15.5879714]
[1744745313037,6.25394887,1599.0,1598.7,15.58797047]
[1744745313175,12.50820808,1599.0,1598.7,15.58796327]
[1744745313675,6.25394887,1599.0,1598.7,21.84292654]
[1744745313906,6.25391538,1599.0,1598.7,21.84292654]
[1744745314207,12.50745358,1599.1,1598.8,6.25467845]
[1744745314575,12.5073834,1599.1,1598.8,6.25457072]
[1744745314904,12.50741549,1599.1,1598.8,6.25457072]
[1744745315205,6.25356757,1599.1,1598.8,12.50914866]
[1744745315499,12.50725681,1599.1,1598.8,6.25457072]
[1744745315702,6.25356757,1599.1,1598.8,6.25457072]
[1744745316285,6.25323174,1599.2,1598.8,6.25457072]
[1744745316486,0.06425706,1599.3,1598.9,0.06253505]
[1744745316704,6.3172962,1599.3,1599.0,6.25376421]
[1744745317214,6.3172962,1599.3,1599.0,12.50752842]
[1744745317411,0.06425706,1599.3,1599.0,6.25376421]
[1744745317613,6.25247562,1599.4,1599.1,6.25328693]
[1744745317914,6.25247562,1599.4,1599.1,12.50667974]
[1744745318084,6.25247562,1599.4,1599.1,12.50670773]
[1744745318284,1.3,1599.3,1599.1,6.25328693]
[1744745318481,1.3,1599.3,1599.2,6.25312656]
[1744745318687,7.03956871,1599.5,1599.2,12.56877684]
[1744745318688,6.25206871,1599.5,1599.2,12.56877684]
[1744745318927,6.25206871,1599.5,1599.2,6.25300915]
[1744745319082,6.2516629,1599.6,1599.2,6.25300915]
[1744745319083,0.7668,1599.8,1599.2,0.06252254]
[1744745319279,6.25166351,1599.6,1599.3,6.25260742]
[1744745319484,0.7668,1599.8,1599.2,6.25312656]
[1744745319796,6.31554816,1599.7,1599.4,6.25213117]
[1744745319995,12.56704562,1599.7,1599.4,6.25213117]
[1744745320198,0.7668,1599.8,1599.3,10.57409637]
[1744745320527,6.25140685,1599.7,1599.3,4.32162238]
[1744745320680,6.25140685,1599.7,1599.3,10.57432046]
[1744745320886,6.25169511,1599.6,1599.3,12.50539616]
[1744745321198,12.50296776,1599.7,1599.3,12.50539616]
[1744745321822,7.01762036,1599.8,1599.2,6.25294214]
[1744745322029,6.2521493,1599.5,1599.2,6.25294214]
[1744745322526,6.25216179,1599.5,1599.2,6.25294214]
[1744745322699,6.25216179,1599.5,1599.2,12.50595473]
[1744745323297,12.50259558,1599.7,1599.4,6.25230676]
[1744745323491,6.251617,1599.6,1599.3,12.50520326]
[1744745323741,6.25117948,1599.7,1599.4,6.25224712]
[1744745324417,12.50263406,1599.7,1599.4,6.25224712]
[1744745324621,12.50269186,1599.7,1599.4,6.25224712]
[1744745324819,6.25117948,1599.7,1599.4,6.31476386]
[1744745325012,6.25162838,1599.6,1599.3,12.50520691]
[1744745325205,6.25117948,1599.7,1599.1,11.03842526]
[1744745325411,0.7668,1599.8,1599.5,6.25184169]
[1744745325412,6.25087924,1599.8,1599.5,6.25184169]
[1744745325625,6.25087924,1599.8,1599.4,7.00559162]
[1744745325828,6.25087924,1599.8,1599.5,6.25182687]
[1744745326128,6.25062213,1599.9,1599.4,0.7534]
[1744745326299,6.25093808,1599.8,1599.4,7.00558419]
[1744745326504,6.2508726,1599.8,1599.5,6.25178069]
[1744745326729,6.25039064,1599.9,1599.5,6.25178069]
[1744745326910,6.25093075,1599.8,1599.5,12.50362481]
[1744745327116,6.25088828,1599.8,1599.5,6.25178069]
[1744745327318,12.50189544,1599.8,1599.5,6.25178069]
[1744745327519,6.25088828,1599.8,1599.4,0.7534]
[1744745327713,6.2503574,1600.0,1599.6,6.25133002]
[1744745328002,6.2503574,1600.0,1599.4,1.26090224]
[1744745328003,6.25066931,1599.9,1599.5,6.25184111]
[1744745328208,6.2502058,1600.0,1599.7,6.25114947]
[1744745328737,7.10917538,1600.1,1599.7,12.50214778]
[1744745328904,1.8,1599.9,1599.8,6.31328553]
[1744745329099,6.24854848,1600.4,1599.8,7.56971755]
[1744745329327,6.24854848,1600.4,1600.1,6.24938006]
[1744745329537,12.49716471,1600.4,1600.1,6.24938006]
[1744745329735,6.24854848,1600.4,1600.1,6.24938006]
[1744745329937,6.24849524,1600.4,1600.1,6.24938006]
[1744745330133,6.24849524,1600.4,1600.1,12.498884]
[1744745330337,6.24844893,1600.4,1600.1,12.49884338]
[1744745330637,0.8018,1600.6,1600.1,1.24988434]
[1744745330835,0.06425706,1600.7,1600.3,6.24865938]
[1744745331036,6.24805505,1600.5,1600.2,6.24918192]
[1744745331337,6.24805505,1600.5,1600.1,10.57084433]
[1744745331519,6.31241162,1600.5,1600.1,6.24922195]
[1744745331712,6.24815456,1600.5,1600.0,6.25]
[1744745331917,6.24815456,1600.5,1600.2,6.24897323]
[1744745332124,6.24765712,1600.6,1600.1,6.87457247]
[1744745332322,6.31152935,1600.7,1600.1,6.87453445]
[1744745332517,6.24832125,1600.5,1600.2,6.24910742]
[1744745332744,12.49654482,1600.5,1600.2,6.24910742]
[1744745333044,6.24822357,1600.5,1600.2,6.24910742]
[1744745333239,12.49647854,1600.5,1600.2,6.24921]
[1744745333445,1.8,1600.4,1600.2,6.24921]
[1744745333835,1.8,1600.4,1600.1,6.87457542]
[1744745334134,1.8,1600.4,1600.1,13.12415084]
[1744745334531,12.49661985,1600.5,1600.1,13.12415084]
[1744745334532,6.24822357,1600.5,1600.2,6.24917514]
[1744745334829,6.24852204,1600.4,1600.1,13.12415084]
[1744745335035,12.49651636,1600.5,1600.2,6.24917354]
[1744745335235,12.49651636,1600.5,1600.1,6.87457542]
[1744745335236,6.24865684,1600.4,1600.1,0.625]
[1744745335556,6.24865684,1600.4,1600.1,13.12394712]
[1744745335715,6.24865684,1600.4,1600.1,6.87433635]
[1744745335914,6.24865684,1600.4,1600.1,13.12382474]
[1744745336110,6.24815895,1600.5,1600.2,6.24920777]
[1744745336317,0.8018,1600.8,1600.2,6.2490362]
[1744745336508,6.24784378,1600.6,1600.3,6.24869425]
[1744745336714,6.24765712,1600.6,1600.2,7.36873749]
[1744745336916,6.24765712,1600.6,1600.3,6.2487226]
[1744745337250,6.24734624,1600.7,1600.3,6.24871118]
[1744745337457,6.24734624,1600.7,1600.4,6.24833647]
[1744745338147,12.49480711,1600.7,1600.4,6.24833647]
[1744745338448,6.24751876,1600.7,1600.4,7.49802551]
[1744745339154,6.24748134,1600.7,1600.4,7.49802551]
[1744745339458,6.24720302,1600.8,1600.4,13.74624807]
[1744745339625,6.2471535,1600.8,1600.5,6.24794636]
[1744745339956,0.06425706,1600.9,1600.4,7.49802299]
[1744745339957,6.2475352,1600.7,1600.4,7.49802299]
[1744745340254,6.24740691,1600.7,1600.4,7.49802299]
[1744745340577,6.26469302,1601.4,1600.6,4.32162238]
[1744745340724,6.24560722,1601.2,1600.8,6.24675586]
[1744745341039,6.24504062,1601.3,1600.9,6.24639227]
[1744745341240,12.49030846,1601.3,1600.9,6.24639227]
[1744745341444,6.24534172,1601.2,1600.8,6.24681074]
[1744745341643,12.49017792,1601.3,1600.8,1.87734331]
[1744745341829,6.2450028,1601.3,1600.9,6.24634042]
[1744745342252,6.24509605,1601.3,1601.0,6.24607134]
[1744745342652,0.02,1601.4,1601.0,6.2459582]
[1744745342853,0.02,1601.4,1601.3,6.24492599]
[1744745343241,0.02,1601.4,1601.3,7.49393133]
[1744745343429,0.02,1601.4,1601.3,7.55637081]
[1744745343958,0.02,1601.4,1601.3,7.49393133]
[1744745344661,0.02,1601.4,1601.1,10.56721105]
[1744745344856,6.26464493,1601.4,1601.1,6.24558867]
[1744745345358,12.50934784,1601.4,1601.1,6.24558867]
[1744745345529,0.02,1601.4,1601.2,6.24530032]
[1744745345732,0.02,1601.4,1601.2,0.463067]
[1744745345927,0.02,1601.4,1601.3,6.24492599]
[1744745346173,0.02,1601.4,1601.3,6.30737007]
[1744745346471,0.02,1601.4,1601.2,7.54062461]
[1744745346678,0.02,1601.4,1601.3,6.24492599]
[1744745347036,0.02,1601.4,1601.2,13.78583231]
[1744745347233,0.02,1601.4,1601.3,6.24492599]
[1744745348064,0.02,1601.4,1601.2,13.78581365]
[1744745348559,0.02,1601.4,1601.2,13.7857634]
[1744745348761,0.02,1601.4,1601.3,6.24492599]
[1744745348933,0.02,1601.4,1601.3,7.62350233]
[1744745349575,0.02,1601.4,1601.3,7.68593912]
[1744745349731,0.02,1601.4,1601.3,7.62350233]
[1744745349934,0.02,1601.4,1601.3,12.69552471]
[1744745350172,0.02,1601.4,1601.3,13.24552471]
[1744745350732,0.02,1601.4,1601.3,13.51384886]
[1744745351343,0.02,1601.4,1601.3,13.24552471]
[1744745351578,0.02,1601.4,1601.3,12.69552471]
[1744745353481,0.02,1601.4,1601.3,13.24552471]
[1744745354466,0.02,1601.4,1601.3,12.69552471]
[1744745355678,0.02,1601.4,1601.3,15.69552471]
[1744745355877,0.02,1601.4,1601.3,5.70019872]
[1744745356185,0.02,1601.4,1601.2,8.00395153]
[1744745356566,0.02,1601.4,1601.3,6.30736667]
[1744745356786,0.02,1601.4,1601.3,10.56654837]
[1744745357074,0.02,1601.4,1601.3,10.62897915]
[1744745357435,0.02,1601.4,1601.3,13.56654837]
[1744745357632,0.02,1601.4,1601.3,17.14171061]
[1744745357942,0.02,1601.4,1601.3,17.69171061]
[1744745358347,0.02,1601.4,1601.3,17.14171061]
[1744745360367,0.02,1601.4,1601.3,17.69171061]
[1744745360560,0.7822,1602.1,1601.8,10.56437797]
[1744745360742,7.02413325,1602.1,1601.9,1.0564378]
[1744745361381,13.26615432,1602.1,1601.9,1.0564378]
[1744745361583,6.24219725,1602.0,1601.6,18.49409859]
[1744745361786,12.48473462,1602.0,1601.7,0.06242458]
[1744745361941,6.24219725,1602.0,1601.7,6.30565795]
[1744745362284,6.24219725,1602.0,1601.7,6.24325514]
[1744745362469,13.26606614,1602.1,1601.7,12.48650522]
[1744745362665,6.24235155,1602.0,1601.7,8.71706166]
[1744745362839,6.24235155,1602.0,1601.7,14.9603014]
[1744745363386,6.24235155,1602.0,1601.8,0.8278]
[1744745363578,0.02,1602.4,1601.8,11.39230659]
[1744745363782,6.24144508,1602.2,1601.8,4.32162238]
[1744745363941,12.48302068,1602.2,1601.9,6.67464586]
[1744745364342,6.24115461,1602.3,1602.0,6.24205525]
[1744745364538,6.24115461,1602.3,1602.0,6.24217698]
[1744745364975,6.24153172,1602.2,1601.9,6.67459899]
[1744745365561,6.24105668,1602.3,1602.0,6.24211729]
[1744745365753,6.24105668,1602.3,1601.9,12.91706244]
[1744745365958,6.24143917,1602.2,1601.9,12.91706244]
[1744745366185,6.24143917,1602.2,1601.9,6.67459899]
[1744745367157,0.06425706,1602.1,1601.5,6.24399962]
[1744745367377,12.48539911,1601.9,1601.5,12.48802002]
[1744745367574,6.24300202,1601.8,1601.5,12.48803653]
[1744745367879,6.24300202,1601.8,1601.5,6.24399962]
[1744745368183,6.24300202,1601.8,1601.4,11.38173409]
[1744745368357,6.24300202,1601.8,1601.4,13.89076942]
[1744745368553,6.24343919,1601.7,1601.4,4.32162238]
[1744745368759,12.48798748,1601.6,1601.3,7.927]
[1744745369421,6.24417717,1601.5,1601.3,7.927]
[1744745369873,6.24474679,1601.4,1601.1,6.24570075]
[1744745370449,12.48943261,1601.4,1601.1,6.24570075]
[1744745370651,6.24423419,1601.5,1601.2,6.24526636]
[1744745370876,6.2445593,1601.4,1601.1,6.24562856]
[1744745371077,6.2445593,1601.4,1601.1,14.25409875]
[1744745371983,6.2445593,1601.4,1601.1,8.00847019]
[1744745372282,12.48868866,1601.5,1601.1,14.2540503]
[1744745372448,6.24425754,1601.5,1601.2,16.81202303]
[1744745372777,12.48794924,1601.6,1601.3,6.24484076]
[1744745372954,6.24385138,1601.6,1601.3,6.24481918]
[1744745373181,12.48778561,1601.6,1601.3,6.24481918]
[1744745373362,12.48778561,1601.6,1601.2,11.03109538]
[1744745373363,13.30211139,1601.7,1601.4,0.06243763]
[1744745373694,13.30187454,1601.7,1601.4,6.24448157]
[1744745373895,6.24410464,1601.6,1601.2,11.03099164]
[1744745374091,6.24410464,1601.6,1601.3,6.30718571]
[1744745374273,7.05841017,1601.7,1601.3,6.30718571]
[1744745374673,6.24386045,1601.6,1601.3,6.24474811]
[1744745375074,12.4878769,1601.6,1601.3,6.24474811]
[1744745375270,6.24449239,1601.5,1601.2,12.31046712]
[1744745375669,6.24456011,1601.4,1601.2,4.7858439]
[1744745375864,12.48901378,1601.5,1601.2,10.56689219]
[1744745376065,7.0582669,1601.7,1601.2,4.32162238]
[1744745376278,6.2453247,1601.2,1600.9,15.4926877]
[1744745376592,6.24474812,1601.4,1600.9,3.0]
[1744745376763,6.24422373,1601.5,1601.1,6.24560311]
[1744745376961,6.24422373,1601.5,1601.2,0.06244459]
[1744745376962,6.24466319,1601.4,1601.2,0.06244459]
[1744745377197,7.05828706,1601.7,1601.2,4.96615639]
[1744745377198,0.8149,1601.7,1601.2,4.96615639]
[1744745377385,6.2440433,1601.6,1601.3,6.24491977]
[1744745377589,6.24417145,1601.5,1601.2,9.89362288]
[1744745377895,12.48782616,1601.6,1601.2,16.13883617]
[1744745378284,6.24387872,1601.6,1601.2,10.35617416]
[1744745378596,6.24387872,1601.6,1601.3,6.24481822]
[1744745378798,12.48777996,1601.6,1601.4,0.06243767]
[1744745378992,6.2441965,1601.5,1601.2,16.60149035]
[1744745379198,6.2441965,1601.5,1601.2,18.26163938]
[1744745380202,7.05839857,1601.7,1601.2,4.11096087]
[1744745380389,6.2446404,1601.4,1601.2,0.46261322]
[1744745380575,6.24429328,1601.5,1601.2,16.13897409]
[1744745380772,0.8149,1601.7,1601.2,3.64834765]
[1744745381103,7.058288,1601.7,1601.4,9.89269374]
[1744745381282,7.058288,1601.7,1601.4,16.1371204]
[1744745381483,7.058288,1601.7,1601.4,9.89269374]
[1744745381803,6.24380996,1601.6,1601.4,3.64834765]
[1744745382704,7.058288,1601.7,1601.4,9.89278319]
[1744745382898,6.99700056,1602.0,1601.4,17.44779965]
[1744745383101,0.7548,1602.0,1601.4,4.95894873]
[1744745383301,6.99706137,1602.0,1601.8,3.64834765]
[1744745383792,7.66,1602.2,1601.8,9.89119192]
[1744745383793,14.73129919,1602.2,1601.8,9.89119192]
[1744745383992,13.31291799,1602.2,1601.8,9.89119192]
[1744745384183,7.07131407,1602.2,1601.9,6.24243992]
[1744745384503,13.31295184,1602.2,1601.8,16.13423637]
[1744745384705,13.31295184,1602.2,1601.8,18.22314894]
[1744745385500,13.3131179,1602.2,1601.8,18.22314894]
[1744745385707,13.3131179,1602.2,1601.8,18.22306521]
[1744745386078,12.48234063,1602.3,1602.0,3.64834765]
[1744745386697,12.48234063,1602.3,1602.0,9.89045819]
[1744745386698,6.24114359,1602.3,1602.0,9.89045819]
[1744745387204,6.24114359,1602.3,1602.0,6.24211054]
[1744745387392,6.24159355,1602.2,1601.9,16.13327628]
[1744745387598,6.24142428,1602.2,1601.9,9.89080185]
[1744745388213,6.24160301,1602.2,1601.9,4.84631909]